[Event "FIDE World Cup O10-A 2024"]
[Site "Batumi"]
[Date "2024.06.24"]
[Round "2.1"]
[White "Mrozowski, Nikodem"]
[Black "Chakrabarty, Reyaansh"]
[Result "0-1"]
[ECO "D13"]
[WhiteElo "1776"]
[BlackElo "2185"]
[Annotator "RC"]
[PlyCount "90"]
[EventDate "2024.06.23"]
[EventType "swiss"]
[EventCountry "GEO"]
[SourceTitle "playchess.com"]
[Source "ChessBase"]
[SourceQuality "1"]
[TimeControl "5400+30"]

1. d4 {[%emt 0:00:18]} d5 {[%emt 0:00:19]} 2. c4 {[%emt 0:00:11]} c6 {[%emt 0:01:46]} 3. cxd5 {[%emt 0:00:21]} cxd5 {[%emt 0:00:05]} 4. Bf4 {[%emt 0:01:14]} Nc6 {[%emt 0:02:35]} 5. Nc3 {[%emt 0:01:57]} Nf6 {[%emt 0:00:12]} 6. e3 {[%emt 0:00:44]} a6 {[%emt 1:28:33]} 7. Bd3 {[%emt 0:02:30]} e6 {[%emt 0:00:00]} 8. Nf3 {[%emt 0:10:09]} Bd6 {[%emt 0:00:00]} 9. Bxd6 {[%emt 0:00:33]} Qxd6 {[%emt 0:00:00]} 10. O-O {[%emt 0:00:41]} O-O {[%emt 0:00:00]} 11. Qd2 {[%emt 0:02:04]} Ne7 {[%emt 0:00:00]} 12. a4 {[%emt 0:08:10]} b6 {[%emt 0:00:00]} 13. Ne5 {[%emt 0:05:35]} Bb7 {[%emt 0:03:30]} 14. Rfc1 {[%emt 0:01:04]} Rfc8 {[%emt 0:00:00]} 15. Rab1 {[%emt 0:09:04]} Rc7 {[%emt 0:00:00]} 16. b4 {[%emt 0:09:49]} Rac8 {[%emt 0:00:00]} 17. a5 {[%emt 0:01:11]} b5 {[%emt 0:00:00]} 18. Bf1 {[%emt 0:01:12]} Nf5 {[%emt 0:00:00]} 19. Nd3 {[%emt 0:03:10]} Ng4 {[%emt 0:00:00]} 20. g3 {[%emt 0:00:25]} Qd8 {[%emt 0:00:00]} 21. Bh3 {[%emt 0:02:24]} Qg5 {[%emt 0:00:00]} 22. Bxg4 {[%emt 0:01:40]} Qxg4 {[%emt 0:00:00]} 23. Nc5 {[%emt 0:07:54]} h5 {[%emt 0:00:00]} 24. Qd1 {[%emt 0:03:57]} Qg5 {[%emt 0:00:00]} 25. Nxb5 {[%emt 0:09:06]} Rxc5 {[%emt 0:00:00]} 26. bxc5 {[%emt 0:01:06]} axb5 {[%emt 0:00:00]} 27. Rxb5 {[%emt 0:00:52]} Bc6 {[%emt 0:00:00]} 28. Rb6 {[%emt 0:02:47]} e5 {[%emt 0:00:00]} 29. Ra1 {[%emt 0:01:42]} exd4 {[%emt 0:00:00]} 30. exd4 {[%emt 0:00:17]} Qf6 {[%emt 0:00:00]} 31. Rb4 {[%emt 0:02:42]} Rc7 {[%emt 0:00:00]} 32. Qxh5 {[%emt 0:02:41]} Rc8 {[%emt 0:00:00]} 33. Qf3 {[%emt 0:09:30]} Qe6 {[%emt 0:00:43]} 34. a6 {[%emt 0:00:00]} Ra8 {[%emt 0:01:20]} 35. Rb6 {[%emt 0:00:00]} Nxd4 {[%emt 0:00:34]} 36. Qe3 {[%emt 0:00:00]} Qf6 {[%emt 0:00:43]} 37. Rd1 {[%emt 0:00:00]} Nf3+ {[%emt 0:00:54]} 38. Kg2 {[%emt 0:00:00]} Ne5 {[%emt 0:00:56]} 39. Qf4 {[%emt 0:00:00]} Qe6 {[%emt 0:02:56]} 40. Re1 {[%emt 0:00:00]} d4+ {[%emt 0:00:37]} 41. f3 {[%emt 0:00:04]} Qa2+ {[%emt 0:00:05]} 42. Kf1 {[%emt 0:01:48]} Bxf3 {[%emt 0:03:21]} 43. Rxe5 {[%emt 0:00:38]} Qg2+ {[%emt 0:00:04]} 44. Ke1 {[%emt 0:00:08]} Qg1+ {[%emt 0:00:06]} 45. Kd2 {[%emt 0:01:51]} Qd1# {[%emt 0:00:04]} 0-1

[Event "FIDE World Cup O10-A 2024"]
[Site "Batumi"]
[Date "2024.06.24"]
[Round "2.2"]
[White "Shangin, Lev"]
[Black "Ramesan, Raunak Amit"]
[Result "1-0"]
[ECO "D43"]
[WhiteElo "2031"]
[BlackElo "1772"]
[Annotator "NA RC"]
[PlyCount "74"]
[EventDate "2024.06.23"]
[EventType "swiss"]
[EventCountry "GEO"]
[SourceTitle "playchess.com"]
[Source "ChessBase"]
[SourceQuality "1"]
[TimeControl "5400+30"]

1. d4 {[%emt 0:00:21]} d5 {[%emt 0:00:20]} 2. c4 {[%emt 0:00:17]} c6 {[%emt 0:00:22]} 3. Nf3 {[%emt 0:00:29]} Nf6 {[%emt 0:00:06]} 4. Nc3 {[%emt 0:00:20]} e6 {[%emt 0:00:57]} 5. Bg5 {[%emt 0:00:21]} h6 {[%emt 0:01:30]} 6. Bh4 {[%emt 0:00:19]} g5 {[%emt 0:01:31]} 7. Bg3 {[%emt 0:00:43]} dxc4 {[%emt 0:00:59]} 8. e3 {[%emt 0:04:35] D43: Semi-Slav: 5 Bg5 h6.} b5 {[%emt 0:01:52]} 9. Qc2 {[%emt 0:04:22]} Nbd7 {[%emt 0:04:37]} 10. Be2 {[%emt 0:00:47]} Bg7 {[%emt 0:23:32]} 11. a4 {[%emt 0:03:45]} Qb6 {[%emt 0:05:04]} 12. O-O {[%emt 0:07:46]} O-O {[%emt 0:01:05]} 13. b3 {[%emt 0:08:34]} a5 {[%emt 0:14:38]} 14. axb5 {[%emt 0:03:05]} cxb3 {[%emt 0:03:22]} 15. Qxb3 {[%emt 0:00:32]} cxb5 {[%emt 0:00:22]} 16. Qxb5 {[%emt 0:03:11]} (16. Bxb5 $16 Ba6 17. Nd2) 16... Qxb5 {[%emt 0:02:24]} (16... Ba6 $11 17. Qxa5 Qxa5 18. Rxa5 Bxe2 19. Rxa8 Rxa8 (19... Bxf1 20. Rxf8+ Kxf8 21. Kxf1 $18) 20. Nxe2 Ne4) 17. Bxb5 {[%emt 0:00:23]} Bb7 {[%emt 0:02:20]} 18. Rfb1 {[%emt 0:01:50]} Bxf3 {[%emt 0:05:09]} 19. gxf3 {[%emt 0:00:30]} Rfc8 {[%emt 0:01:23]} 20. Na4 $14 {[%emt 0:04:22]} Ra7 {[%emt 0:05:01]} 21. Rc1 {[%emt 0:03:25]} Rxc1+ {[%emt 0:01:38]} 22. Rxc1 {[%emt 0:00:03]} Bf8 {[%emt 0:03:06]} 23. e4 {[%emt 0:11:49]} Bb4 {[%emt 0:07:13]} 24. Rc8+ {[%emt 0:01:14]} Kg7 {[%emt 0:01:17]} 25. Bc7 {[%emt 0:09:33]} Ne8 {[%emt 0:06:59]} 26. Bg3 {[%emt 0:02:54]} Nef6 {[%emt 0:00:37]} 27. Kf1 {[%emt 0:02:48]} h5 {[%emt 0:02:34]} 28. h3 {[%emt 0:02:21]} h4 {[%emt 0:00:52]} 29. Bh2 {[%emt 0:00:01]} Nf8 {[%emt 0:02:03]} 30. Bb8 {[%emt 0:02:45]} Re7 {[%emt 0:00:21]} 31. Nc5 {[%emt 0:06:18]} Ng6 {[%emt 0:01:23]} 32. Bc7 {[%emt 0:03:41]} e5 {[%emt 0:01:07]} 33. Bd6 {[%emt 0:00:24]} exd4 {[%emt 0:00:35]} 34. Bxe7 {[%emt 0:13:42]} Nxe7 {[%emt 0:00:07]} 35. Rc7 {[%emt 0:00:00]} Bxc5 {[%emt 0:00:54]} 36. Rxc5 {[%emt 0:00:00]} Nh7 {[%emt 0:00:25]} 37. Bc4 {[%emt 0:00:00]} f6 {[%emt 0:01:15]} 1-0

[Event "FIDE World Cup O10-A 2024"]
[Site "Batumi"]
[Date "2024.06.24"]
[Round "2.3"]
[White "Ismailov, Omarbek"]
[Black "Ashwath Kaushik"]
[Result "0-1"]
[ECO "D00"]
[WhiteElo "1716"]
[BlackElo "2029"]
[Annotator "NA RC"]
[PlyCount "96"]
[EventDate "2024.06.23"]
[EventType "swiss"]
[EventCountry "GEO"]
[SourceTitle "playchess.com"]
[Source "ChessBase"]
[SourceQuality "1"]
[TimeControl "5400+30"]

1. d4 {[%emt 0:00:04]} d5 {[%emt 0:00:45]} 2. Bf4 {[%emt 0:00:49]} c5 {[%emt 0:00:25]} 3. c3 {[%emt 0:00:58]} Qb6 {[%emt 0:00:29]} 4. Qb3 {[%emt 0:05:20]} Qxb3 {[%emt 0:00:32]} 5. axb3 {[%emt 0:00:15]} cxd4 {[%emt 0:00:16]} 6. cxd4 {[%emt 0:00:12] D00: 1 d4 d5: Unusual lines.} Nc6 {[%emt 0:00:29]} 7. e3 {[%emt 0:01:54]} Nf6 {[%emt 0:03:10]} 8. Nc3 {[%emt 0:03:53]} Bd7 {[%emt 0:00:27]} 9. Nf3 {[%emt 0:03:26]} e6 {[%emt 0:02:32]} 10. Be2 {[%emt 0:00:53]} Nh5 {[%emt 0:02:38]} 11. Bg5 {[%emt 0:01:05]} h6 {[%emt 0:01:28]} 12. Bh4 {[%emt 0:00:19]} g5 {[%emt 0:00:23]} 13. Nd2 {[%emt 0:00:51]} Ng7 {[%emt 0:01:16]} 14. Bg3 {[%emt 0:00:18]} Nf5 {[%emt 0:02:45]} 15. Bb5 {[%emt 0:07:25]} Nxg3 {[%emt 0:01:01]} (15... h5 $17) 16. hxg3 {[%emt 0:00:23]} Bg7 {[%emt 0:05:35]} 17. g4 {[%emt 0:09:12]} Ke7 {[%emt 0:01:54]} 18. Ke2 {[%emt 0:03:35]} Kd6 {[%emt 0:01:56]} 19. Bxc6 {[%emt 0:00:44]} Bxc6 {[%emt 0:00:37]} 20. b4 {[%emt 0:04:29]} e5 {[%emt 0:01:19]} ({Black should try} 20... a6 $11) 21. Kd3 {[%emt 0:03:08]} (21. dxe5+ $14 Bxe5 22. Rhd1) 21... exd4 {[%emt 0:07:38]} 22. exd4 {[%emt 0:00:05]} a6 {[%emt 0:02:17]} (22... Rhf8 $11) 23. Nb3 {[%emt 0:05:25]} (23. Nf1 $142) 23... b6 {[%emt 0:00:34]} 24. Nd2 {[%emt 0:08:56]} Bd7 $1 {[%emt 0:00:49]} 25. f3 {[%emt 0:01:33]} (25. Nf1 $1 $11) 25... f5 {[%emt 0:00:17]} 26. Nf1 {[%emt 0:00:18]} fxg4 {[%emt 0:00:39]} 27. fxg4 {[%emt 0:00:15]} Bxg4 {[%emt 0:01:09]} ({Better is} 27... Rhf8 $1 $15 28. b5 (28. Ne3 Rf4 $17) 28... Rf4 (28... Bxg4 29. Ne3 $16) (28... Bxb5+ 29. Nxb5+ axb5 30. Rxa8 $16) (28... axb5 29. Rxa8 Rxa8 30. Ne3 $11) 29. Rxa6 Rxd4+ 30. Kc2 Rb8 (30... Rxa6 31. bxa6 Rf4 32. Ne3 $16)) 28. Ne3 {[%emt 0:00:13]} Bd7 {[%emt 0:04:01]} 29. Rhf1 {[%emt 0:10:54]} Be6 {[%emt 0:10:59]} 30. b5 {[%emt 0:02:44]} axb5 {[%emt 0:01:48]} 31. Nxb5+ {[%emt 0:00:07]} Kc6 {[%emt 0:01:08]} 32. Nc3 {[%emt 0:01:09]} Rxa1 {[%emt 0:02:17]} 33. Rxa1 {[%emt 0:00:11]} Rf8 $11 {[%emt 0:01:48]} (33... Rd8 $1 $15) 34. Rc1 {[%emt 0:14:13]} Bf5+ {[%emt 0:03:44]} 35. Kd2 {[%emt 0:03:27]} b5 {[%emt 0:06:42]} 36. Ncxd5+ {[%emt 0:03:00]} Kd6 {[%emt 0:00:42]} 37. Nc3 {[%emt 0:00:41]} Bd7 {[%emt 0:01:12]} 38. Ne4+ {[%emt 0:00:51]} Ke7 {[%emt 0:00:51]} 39. Nd5+ {[%emt 0:00:28]} Ke6 {[%emt 0:01:22]} 40. Ne3 {[%emt 0:00:48]} Bxd4 {[%emt 0:01:19]} 41. b3 {[%emt 0:00:34]} Re8 {[%emt 0:06:45]} 42. Nc5+ {[%emt 0:01:40]} Kd6 {[%emt 0:01:53]} 43. Nb7+ {[%emt 0:00:15]} Ke5 {[%emt 0:00:25]} 44. Rc7 {[%emt 0:01:09]} Be6 {[%emt 0:04:12]} 45. Nc5 {[%emt 0:02:16]} Bxe3+ {[%emt 0:00:31]} 46. Kxe3 {[%emt 0:01:23]} Kd6 {[%emt 0:00:13]} 47. Na6 {[%emt 0:00:18]} Bc8+ {[%emt 0:00:14]} 48. Kd4 {[%emt 0:00:18]} Bxa6 {[%emt 0:00:32]} 0-1

[Event "FIDE World Cup O10-A 2024"]
[Site "Batumi"]
[Date "2024.06.24"]
[Round "2.4"]
[White "Kalinichenko, German Yu"]
[Black "Bolashakov, Nurali"]
[Result "0-1"]
[ECO "C44"]
[WhiteElo "1634"]
[BlackElo "1843"]
[Annotator "NA RC"]
[PlyCount "60"]
[EventDate "2024.06.23"]
[EventType "swiss"]
[EventCountry "GEO"]
[SourceTitle "playchess.com"]
[Source "ChessBase"]
[SourceQuality "1"]
[TimeControl "5400+30"]

1. e4 {[%emt 0:00:01]} e5 {[%emt 0:00:11]} 2. Nf3 {[%emt 0:00:06]} Nc6 {[%emt 1:31:19]} 3. d4 {[%emt 0:00:08]} exd4 {[%emt 0:00:00]} 4. c3 {[%emt 0:00:06]} Nf6 {[%emt 0:00:00]} 5. e5 {[%emt 0:00:16]} Nd5 {[%emt 0:00:00]} 6. cxd4 {[%emt 0:00:16]} Bb4+ {[%emt 0:00:00]} 7. Bd2 {[%emt 0:00:12]} Bxd2+ {[%emt 0:00:00]} 8. Qxd2 {[%emt 0:02:24]} O-O {[%emt 0:00:00]} 9. Nc3 {[%emt 0:00:20]} Nxc3 {[%emt 0:00:00]} 10. bxc3 {[%emt 0:01:21]} d6 {[%emt 0:00:00]} 11. exd6 {[%emt 0:00:47]} cxd6 {[%emt 0:00:00]} 12. Be2 {[%emt 0:00:15]} b6 {[%emt 0:00:00]} 13. O-O {[%emt 0:00:11]} Bb7 {[%emt 0:00:00]} 14. Rae1 {[%emt 0:01:38]} Na5 {[%emt 0:00:00]} 15. Bd3 {[%emt 1:29:59]} Bxf3 {[%emt 0:00:00]} 16. gxf3 {[%emt 0:00:00]} Qf6 {[%emt 0:00:00]} 17. Qe3 {[%emt 0:00:00]} Rac8 {[%emt 0:00:00]} 18. f4 {[%emt 0:00:00]} g6 {[%emt 0:00:00]} 19. Rc1 {[%emt 0:00:00]} Nc4 {[%emt 0:00:00]} 20. Bxc4 {[%emt 0:00:00]} Rxc4 {[%emt 0:00:00]} 21. Rfe1 {[%emt 0:00:00]} Rfc8 {[%emt 0:00:00]} 22. Qg3 {[%emt 0:00:00]} Qf5 {[%emt 0:00:00]} 23. Re7 {[%emt 0:00:00]} Rxd4 {[%emt 0:00:00]} 24. cxd4 {[%emt 0:00:00]} Rxc1+ {[%emt 0:00:00]} 25. Kg2 {[%emt 0:00:00]} Qd5+ {[%emt 0:00:00]} 26. Kh3 {[%emt 0:00:00]} Qxd4 {[%emt 0:00:00]} 27. Rxa7 {[%emt 0:00:00]} Rc3 {[%emt 0:00:00]} 28. f3 {[%emt 0:00:00]} Qd5 {[%emt 0:00:00]} 29. Kg2 {[%emt 0:00:00]} Rc2+ {[%emt 0:00:00]} 30. Kh1 {[%emt 0:00:00]} Qd1+ {[%emt 0:00:00]} 0-1

[Event "FIDE World Cup O10-A 2024"]
[Site "Batumi"]
[Date "2024.06.24"]
[Round "2.5"]
[White "Obado, Sean Adrich"]
[Black "Vyom Malhotra"]
[Result "0-1"]
[ECO "C58"]
[WhiteElo "1631"]
[BlackElo "1803"]
[Annotator "NA RC"]
[PlyCount "68"]
[EventDate "2024.06.23"]
[EventType "swiss"]
[EventCountry "GEO"]
[SourceTitle "playchess.com"]
[Source "ChessBase"]
[SourceQuality "1"]
[TimeControl "5400+30"]

1. e4 {[%emt 0:00:01]} e5 {[%emt 0:01:12]} 2. Nf3 {[%emt 0:00:06]} Nc6 {[%emt 0:00:17]} 3. Bc4 {[%emt 0:00:08]} Nf6 {[%emt 0:00:15]} 4. Ng5 {[%emt 0:00:06]} d5 {[%emt 0:00:13]} 5. exd5 {[%emt 0:00:06]} Na5 {[%emt 0:00:14]} 6. Bb5+ {[%emt 0:00:08]} c6 {[%emt 0:00:24]} 7. dxc6 {[%emt 0:00:08]} bxc6 {[%emt 0:00:09]} 8. Bd3 {[%emt 0:00:05]} Nd5 {[%emt 0:00:10]} 9. Nf3 {[%emt 0:00:49]} Bd6 {[%emt 0:00:23]} 10. O-O {[%emt 0:00:29]} O-O {[%emt 1:32:13]} 11. Re1 {[%emt 1:33:54]} Re8 {[%emt 0:00:30]} 12. Bf1 {[%emt 0:00:30]} e4 {[%emt 0:00:00]} 13. Nd4 {[%emt 0:00:00]} Qf6 {[%emt 0:00:00]} 14. c3 {[%emt 0:00:00]} Qg6 {[%emt 0:00:00]} 15. d3 {[%emt 0:00:00]} Bg4 {[%emt 0:02:00]} 16. Qa4 {[%emt 0:02:00]} exd3 {[%emt 0:00:00]} 17. Rxe8+ {[%emt 0:00:00]} Rxe8 {[%emt 0:01:00]} 18. Bd2 {[%emt 0:00:00]} Qh5 {[%emt 0:00:00]} 19. Nf3 {[%emt 0:00:00]} Bxf3 {[%emt 0:01:00]} 20. h3 {[%emt 0:00:00]} Qe5 {[%emt 0:00:00]} 21. g3 {[%emt 0:00:00]} Bc5 {[%emt 0:00:00]} 22. Qh4 {[%emt 0:00:00]} h6 {[%emt 0:00:00]} 23. Bg2 {[%emt 0:00:00]} Bxf2+ {[%emt 0:00:00]} 24. Kh1 {[%emt 0:00:00]} Bxg3 {[%emt 0:00:00]} 25. Qd4 {[%emt 0:00:00]} Qe2 {[%emt 0:00:00]} 26. Qg1 {[%emt 0:00:00]} Nc4 {[%emt 0:00:00]} 27. b3 {[%emt 0:00:00]} Bxg2+ {[%emt 0:00:00]} 28. Qxg2 {[%emt 0:00:00]} Qd1+ {[%emt 0:00:00]} 29. Qg1 {[%emt 0:00:00]} Qxg1+ {[%emt 0:00:00]} 30. Kxg1 {[%emt 0:00:00]} Nxd2 {[%emt 0:00:00]} 31. Nxd2 {[%emt 0:00:00]} Re2 {[%emt 0:00:00]} 32. Nf1 {[%emt 0:00:00]} Bf4 {[%emt 0:00:00]} 33. Rd1 {[%emt 0:00:00]} d2 {[%emt 0:00:00]} 34. Nxd2 {[%emt 0:00:00]} Be3+ {[%emt 0:00:00]} 0-1

[Event "FIDE World Cup O10-A 2024"]
[Site "Batumi"]
[Date "2024.06.24"]
[Round "2.6"]
[White "Aryan Mehta"]
[Black "Kiladze, Giorgi"]
[Result "1/2-1/2"]
[ECO "E92"]
[WhiteElo "1863"]
[BlackElo "1552"]
[Annotator "NA RC"]
[PlyCount "145"]
[EventDate "2024.06.23"]
[EventType "swiss"]
[EventCountry "GEO"]
[SourceTitle "playchess.com"]
[Source "ChessBase"]
[SourceQuality "1"]
[TimeControl "5400+30"]

1. d4 {[%emt 0:00:03]} Nf6 {[%emt 0:00:15]} 2. c4 {[%emt 0:00:10]} g6 {[%emt 0:00:05]} 3. Nc3 {[%emt 0:00:10]} Bg7 {[%emt 0:00:07]} 4. e4 {[%emt 0:00:07]} d6 {[%emt 0:00:06]} 5. Nf3 {[%emt 0:00:11]} O-O {[%emt 0:00:10]} 6. Be2 {[%emt 0:00:07]} e5 {[%emt 0:00:07]} 7. d5 {[%emt 0:00:16]} a5 {[%emt 0:02:55]} 8. O-O {[%emt 0:00:17]} Na6 {[%emt 0:00:04]} 9. Qc2 {[%emt 0:00:24]} Ne8 {[%emt 0:01:19] E92: King's Indian: Classical: 6 Be2 e5: 7 dxe5, 7 Be3 and Petrosian System without 7...Nbd7.} 10. Ne1 {[%emt 0:03:49]} f5 {[%emt 0:00:23]} 11. f3 {[%emt 0:00:19]} Nf6 {[%emt 0:00:23]} 12. Nd3 {[%emt 0:01:46]} Kh8 {[%emt 0:05:36]} 13. Be3 {[%emt 0:01:09]} f4 {[%emt 0:01:43]} 14. Bf2 {[%emt 0:00:09]} g5 {[%emt 0:00:18]} 15. c5 {[%emt 0:05:35]} Qe7 {[%emt 0:00:59]} 16. cxd6 {[%emt 0:01:06]} cxd6 {[%emt 0:00:03]} 17. Na4 {[%emt 0:06:16]} b5 {[%emt 0:05:19]} 18. Nb6 {[%emt 0:00:30]} Rb8 {[%emt 0:00:27]} 19. Qd2 {[%emt 0:04:49]} b4 {[%emt 0:06:04]} 20. Nxc8 {[%emt 1:13:17]} Rbxc8 {[%emt 0:03:09]} 21. Nxe5 {[%emt 0:00:30]} Qxe5 {[%emt 0:01:46]} 22. Bxa6 {[%emt 0:00:00]} Ra8 {[%emt 0:00:09]} 23. Bb7 {[%emt 0:00:00]} Rab8 {[%emt 0:00:08]} 24. Bc6 {[%emt 0:00:00]} g4 {[%emt 0:00:44]} 25. Qd4 {[%emt 0:00:00]} Qg5 {[%emt 0:00:36]} 26. Qd3 {[%emt 0:00:00]} h5 {[%emt 0:03:02]} 27. Bd4 {[%emt 0:00:00]} Rg8 {[%emt 0:02:14] [#]} (27... gxf3 $1 $11 {remains equal.} 28. Qxf3 (28. Rxf3 Ng4 $11) 28... Ng4 29. Bxg7+ Kxg7 (29... Qxg7 30. e5 $15)) 28. Kh1 $1 {[%emt 0:00:00]} Rbf8 {[%emt 0:03:03]} (28... Nh7 $16 {might work better.}) 29. Rae1 {[%emt 0:00:00]} Nh7 {[%emt 0:03:25]} 30. Bxg7+ {[%emt 0:00:00]} Rxg7 $14 {[%emt 0:01:25]} 31. Re2 {[%emt 0:00:00]} Rfg8 {[%emt 0:01:34]} 32. Qd2 {[%emt 0:00:00]} Rf7 {[%emt 0:02:43]} 33. a3 {[%emt 0:00:00]} bxa3 {[%emt 0:02:01]} 34. bxa3 {[%emt 0:00:00]} h4 {[%emt 0:00:24]} 35. fxg4 {[%emt 0:07:00]} Qxg4 {[%emt 0:00:16]} 36. Ref2 {[%emt 0:00:00]} h3 {[%emt 0:01:14]} 37. Qc3+ {[%emt 0:00:00]} Nf6 {[%emt 0:01:25]} 38. Qxh3+ {[%emt 0:00:00]} Qxh3 {[%emt 0:00:08]} 39. gxh3 {[%emt 0:00:00]} Nxe4 {[%emt 0:00:29]} 40. Rxf4 {[%emt 0:00:00]} Rxf4 {[%emt 0:00:52]} 41. Rxf4 {[%emt 0:00:00]} Ng5 {[%emt 0:00:35]} 42. Rh4+ {[%emt 0:00:00]} Kg7 {[%emt 0:00:07]} 43. Rg4 {[%emt 0:00:00]} Kh7 {[%emt 0:00:18]} 44. Ba4 {[%emt 0:00:00]} Nf3 {[%emt 0:01:23]} 45. Kg2 {[%emt 0:00:00]} Ne5 {[%emt 0:00:58]} 46. Bc2+ {[%emt 0:00:00]} Kh8 {[%emt 0:00:13]} 47. Rxg8+ {[%emt 0:00:00]} Kxg8 {[%emt 0:00:06]} 48. Kg3 {[%emt 0:00:00]} Nc4 {[%emt 0:00:08]} 49. a4 {[%emt 0:00:00]} Ne3 {[%emt 0:00:06]} 50. Bd3 {[%emt 0:00:00]} Kg7 {[%emt 0:00:07]} 51. Be4 {[%emt 0:00:00]} Kf6 {[%emt 0:00:08]} 52. h4 {[%emt 0:08:30]} Nc4 {[%emt 0:00:11]} 53. Bc2 {[%emt 0:00:00]} Ke5 {[%emt 0:00:09]} 54. h5 {[%emt 0:00:00]} Ne3 {[%emt 0:00:15]} 55. h6 {[%emt 0:00:00]} Kf6 {[%emt 0:00:24]} 56. Be4 {[%emt 0:00:00]} Nc4 {[%emt 0:00:51]} 57. Kf4 {[%emt 0:00:00]} Nb6 {[%emt 0:00:30]} 58. h7 {[%emt 0:00:00]} Kg7 {[%emt 0:00:14]} 59. h4 {[%emt 0:00:00]} Nxa4 {[%emt 0:00:17]} 60. h5 {[%emt 0:00:00]} Nc5 {[%emt 0:00:11]} 61. Bb1 {[%emt 0:00:00]} Nd7 {[%emt 0:00:18]} 62. h6+ {[%emt 0:00:00]} Kh8 {[%emt 0:00:05]} 63. Kf5 {[%emt 0:00:00]} Nb6 {[%emt 0:00:43]} 64. Ke6 {[%emt 0:00:00]} Nc4 {[%emt 0:00:05]} 65. Ba2 {[%emt 0:00:00]} Ne3 {[%emt 0:00:15]} 66. Bb1 {[%emt 0:00:00]} a4 {[%emt 0:00:53]} 67. Kxd6 {[%emt 0:00:00]} a3 {[%emt 0:00:07]} 68. Ke6 {[%emt 0:00:00]} a2 {[%emt 0:00:09]} 69. Bxa2 {[%emt 0:00:00]} Nxd5 {[%emt 0:00:06]} 70. Bb1 {[%emt 0:00:00]} Ne3 {[%emt 0:00:52]} 71. Ke5 {[%emt 0:00:00]} Ng4+ {[%emt 0:00:10]} 72. Kf4 {[%emt 0:00:00]} Nxh6 {[%emt 0:00:11]} 73. Ke4 {[%emt 0:00:00]} 1/2-1/2

[Event "FIDE World Cup O10-A 2024"]
[Site "Batumi"]
[Date "2024.06.24"]
[Round "2.7"]
[White "Faramarzi Garousi, Maartia"]
[Black "Chkhartishvili, Lazare"]
[Result "1-0"]
[ECO "B33"]
[WhiteElo "1820"]
[BlackElo "1608"]
[Annotator "NA RC"]
[PlyCount "67"]
[EventDate "2024.06.23"]
[EventType "swiss"]
[EventCountry "GEO"]
[SourceTitle "playchess.com"]
[Source "ChessBase"]
[SourceQuality "1"]
[TimeControl "5400+30"]

1. e4 {[%emt 1:31:00]} c5 {[%emt 0:00:08]} 2. Nf3 {[%emt 0:00:00]} Nc6 {[%emt 0:00:29]} 3. d4 {[%emt 0:00:00]} cxd4 {[%emt 0:00:17]} 4. Nxd4 {[%emt 0:00:00]} Nf6 {[%emt 0:00:09]} 5. Nc3 {[%emt 0:00:00]} e5 {[%emt 0:00:07]} 6. Ndb5 {[%emt 0:00:00]} d6 {[%emt 0:00:08]} 7. Nd5 {[%emt 0:00:00]} Nxd5 {[%emt 0:00:08]} 8. exd5 {[%emt 0:00:00]} Nb8 {[%emt 0:00:05]} 9. a4 {[%emt 0:00:00]} Be7 {[%emt 0:00:11]} 10. Be2 {[%emt 0:00:00]} O-O {[%emt 0:00:14]} 11. O-O {[%emt 0:00:00] B33: Sicilian: Pelikan and Sveshnikov Variations.} Nd7 {[%emt 0:00:21]} 12. Bd2 {[%emt 0:00:00]} a6 {[%emt 0:01:07]} 13. Na3 {[%emt 0:00:00]} a5 {[%emt 0:01:00]} 14. Nc4 {[%emt 0:00:00]} b6 {[%emt 0:06:23]} 15. Be3 {[%emt 0:00:00]} Ba6 {[%emt 0:04:56]} 16. Na3 {[%emt 0:00:00]} Bb7 {[%emt 0:06:35]} 17. Nb5 {[%emt 0:00:00]} Ba6 {[%emt 0:20:00]} 18. Nc3 {[%emt 0:00:00]} Bxe2 {[%emt 0:00:26]} 19. Qxe2 {[%emt 0:00:00]} f5 {[%emt 0:00:10]} 20. f4 {[%emt 0:00:00]} Bf6 {[%emt 0:01:36]} 21. Nb5 {[%emt 0:00:00]} Nc5 {[%emt 0:01:29]} 22. Bxc5 {[%emt 0:00:00]} bxc5 {[%emt 0:00:08]} 23. c3 {[%emt 0:00:00]} exf4 {[%emt 0:12:26]} 24. Qe6+ {[%emt 0:00:00]} Kh8 {[%emt 0:00:41]} 25. Nxd6 {[%emt 0:00:00]} Qc7 {[%emt 0:03:04]} 26. Nb5 {[%emt 0:00:00]} Qb8 {[%emt 0:01:18]} 27. Rad1 {[%emt 0:00:00]} g5 {[%emt 0:03:03]} 28. d6 {[%emt 0:00:00]} ({And not} 28. Qxf5 Bd4+ 29. Nxd4 Rxf5 (29... Qxb2 $2 {perishes.} 30. Qe5+ Kg8 31. Ne6 $18) 30. Nxf5 Qxb2 $11) 28... h5 $18 {[%emt 0:14:08]} (28... Qe8 $142 29. Nc7 (29. Qxf5 Bd4+ 30. Nxd4 Qe3+ 31. Rf2 Rxf5 $11) 29... Qxe6 30. Nxe6 Rfb8) 29. Rfe1 {[%emt 0:00:00]} Qd8 {[%emt 0:02:13]} 30. d7 {[%emt 0:00:00]} g4 {[%emt 0:06:36]} 31. Nd6 {[%emt 0:00:00]} g3 {[%emt 0:04:13]} 32. Nf7+ {[%emt 0:00:00]} Rxf7 {[%emt 0:00:11]} 33. Qxf7 {[%emt 0:00:00]} gxh2+ {[%emt 0:00:27]} 34. Kh1 {[%emt 0:00:00]} 1-0

[Event "FIDE World Cup O10-A 2024"]
[Site "Batumi"]
[Date "2024.06.24"]
[Round "2.8"]
[White "Safin Safarullakhan"]
[Black "Macosay Lopez, Julio David"]
[Result "1-0"]
[ECO "D05"]
[WhiteElo "1879"]
[BlackElo "1607"]
[Annotator "NA RC"]
[PlyCount "45"]
[EventDate "2024.06.23"]
[EventType "swiss"]
[EventCountry "GEO"]
[SourceTitle "playchess.com"]
[Source "ChessBase"]
[SourceQuality "1"]
[TimeControl "5400+30"]

1. Nf3 {[%emt 0:00:06]} d5 {[%emt 0:03:16]} 2. d4 {[%emt 0:00:20]} Nf6 {[%emt 0:00:16]} 3. e3 {[%emt 0:00:16]} c5 {[%emt 0:01:28]} 4. b3 {[%emt 0:00:26]} e6 {[%emt 0:00:37]} 5. Bd3 {[%emt 0:00:21]} Nc6 {[%emt 0:01:28]} 6. O-O {[%emt 0:00:32]} Bd6 {[%emt 0:00:29]} 7. Bb2 {[%emt 0:00:37]} O-O {[%emt 0:00:27]} 8. c4 {[%emt 0:00:46] D05: Colle System with ...e6.} Be7 {[%emt 0:01:46]} 9. Nbd2 {[%emt 0:00:40]} b6 {[%emt 0:01:03]} 10. Qe2 {[%emt 0:00:58]} Bb7 {[%emt 0:02:45]} 11. cxd5 {[%emt 0:03:45]} Nxd5 {[%emt 0:02:09]} 12. dxc5 {[%emt 0:01:27]} Bxc5 {[%emt 0:00:20]} 13. h4 {[%emt 0:05:14]} Ncb4 {[%emt 0:04:49]} 14. Bb1 {[%emt 0:15:37]} Ba6 {[%emt 0:06:02]} 15. Nc4 {[%emt 0:01:09]} h6 {[%emt 0:03:37]} 16. Rd1 {[%emt 0:04:37]} Qe7 {[%emt 0:07:53]} 17. a3 {[%emt 0:04:16]} Nc6 {[%emt 0:00:16]} 18. b4 {[%emt 0:01:17]} Bd6 {[%emt 0:00:49]} 19. Qc2 {[%emt 0:02:06]} g6 {[%emt 0:00:55]} 20. Nxd6 {[%emt 0:01:57]} Qxd6 {[%emt 1:00:05]} 21. e4 {[%emt 0:00:42]} Rac8 {[%emt 0:00:00]} 22. exd5 {[%emt 0:02:45]} Nxb4 {[%emt 0:00:00]} 23. Qd2 $18 {[%emt 0:52:06]} 1-0